Cogmind - Beta 12 @@@ ROGUE MODE // 2023.03.17 @ 07:56:49 Player: TrialByFire Result: Destroyed by G-67 Veteran with Field Laser Performance ------------- Evolutions (6) 3000 Regions Visited (21) 4200 Robots Destroyed (188) 940 Value Destroyed (10092) 10092 Prototype IDs (19) 380 Alien Tech Used (0) 0 Bonus (5111) 5111 TOTAL SCORE: 23723 Bonus ------- High Alert Combat Kills 1123 Follower Combat Kills 1117 Entered Garrisons 600 Used RIF Installer 1500 Entered DSFs 500 Aligned with FarCom 300 Friendly Fire -29 Cogmind --------- Core Integrity 0/1150 Matter 57/300 Energy 12/100 System Corruption 29% Temperature Cool (9) Movement Core (750) Ox14 Location -4/Factory Parts ------- > --- POWER (2) -------- (None) > --- PROPULSION (5) --- (None) > --- UTILITY (8) ------ High-capacity Storage Unit Quantum Capacitor Relay Coupler [Sentry] (26) > --- WEAPON (4) ------- (None) > --- INVENTORY (20) --- Improved Treads Nuclear Pulse Array Superbattery (1500) Compact Matter Pod (0) Advanced Phase Shifter Peak State ------------ > --- POWER ------------ Antimatter Reactor Antimatter Reactor > --- PROPULSION ------- Antigrav System Antigrav System Cooled Gravmag System Nuclear Pulse Array > --- UTILITY ---------- Advanced Heat Sink High-capacity Storage Unit Advanced Targeting Computer Improved Target Analyzer Improved Light Armor Plating Relay Coupler [Grunt] Relay Coupler [Sentry] Relay Coupler [Specialist] > --- WEAPON ----------- Plasma Rifle KE Penetrator Light Antimatter Cannon Advanced Datajack > --- INVENTORY -------- Antimatter Reactor Quantum Reactor Flexi-carbon Leg Nuclear Pulse Array Nuclear Pulse Array Superbattery Compact Matter Pod Experimental Sensor Array Quantum Capacitor Advanced Phase Shifter Improved Light Armor Plating Improved Light Armor Plating Relay Coupler [Grunt] Relay Coupler [Sentry] Heavy Mass Driver Advanced Datajack [Rating: 112] Favorites ----------- Power Neutrino Core Engine Ion Engine Power Core Neutrino Core Reactor Antimatter Reactor Propulsion Flexi-carbon Leg Treads Improved Medium Treads Leg Flexi-carbon Leg Hover Unit Antigrav System Flight Unit VTOL Module Utility High-capacity Storage Unit Device Advanced Heat Sink Storage High-capacity Storage Unit Processor Machine Analyzer Hackware Relay Coupler [Grunt] Protection Improved Medium Armor Plating Weapon Chainsword Energy Gun Medium Laser Energy Cannon Light EM Pulse Cannon Ballistic Gun Enhanced Coil Gun Ballistic Cannon Mini Assault Cannon Launcher Heavy Missile Launcher Special Weapon Remote Datajack Impact Weapon Powered Hammer Slashing Weapon Chainsword Special Melee Weapon Advanced Datajack Build | -11 -10 -10 -10 -9 -8 -7 -7 -7 -7 -6 -6 -6 -5 -5 -5 -5 -5 -5 -4 -4 -4 ------- Run | Jun Mat Min Exi Min Mat Fac Gar Fac DSF Fac Low Low Fac Ext Cet Arc Hub Gar Fac Gar Fac Slots Evolved 12 | . . . . . 4 2 . . . 2 . . 2 . . . . . 2 . . Power 1 | . . . . . . . . . . . . . 1 . . . . . . . . Propulsion 3 | . . . . . 1 1 . . . 1 . . . . . . . . . . . Utility 6 | . . . . . 1 1 . . . 1 . . 1 . . . . . 2 . . Weapon 2 | . . . . . 2 . . . . . . . . . . . . . . . . Parts Attached 256 | 6 4 1 4 2 26 3 16 1 15 21 2 3 6 11 3 1 2 51 24 23 31 Power 36 | 1 1 1 . . 2 . 2 . 1 1 . . . 3 1 . . 11 2 1 9 Engine 6 | 1 1 1 . . . . 1 . . . . . . . . . . 1 . . 1 Core 19 | . . . . . 2 . 1 . 1 . . . . 3 . . . 9 1 1 1 Reactor 11 | . . . . . . . . . . 1 . . . . 1 . . 1 1 . 7 Propulsion 67 | 2 . . . . 6 1 5 1 3 3 1 . 1 5 . 1 . 15 5 8 10 Treads 13 | . . . . . . . 1 . . . . . . . . . . 12 . . . Leg 39 | 2 . . . . 6 1 4 1 3 3 1 . 1 5 . 1 . 3 5 1 2 Wheel . | . . . . . . . . . . . . . . . . . . . . . . Hover 6 | . . . . . . . . . . . . . . . . . . . . 2 4 Flight 9 | . . . . . . . . . . . . . . . . . . . . 5 4 Utility 63 | 1 2 . 2 2 7 2 2 . 5 3 . 1 2 2 . . 1 13 6 4 8 Device 15 | . . . . 1 3 . . . 2 . . . . 1 . . . 3 2 . 3 Storage 11 | 1 1 . 2 . 3 . . . . . . . . . . . 1 . 1 2 . Processor 7 | . . . . . . 1 1 . . 1 . . . . . . . 2 1 1 . Hackware 12 | . . . . . . . . . 1 1 . 1 1 . . . . 4 1 1 2 Protection 18 | . 1 . . 1 1 1 1 . 2 1 . . 1 1 . . . 4 1 . 3 Artifact . | . . . . . . . . . . . . . . . . . . . . . . Weapon 90 | 2 1 . 2 . 11 . 7 . 6 14 1 2 3 1 2 . 1 12 11 10 4 Energy Gun 26 | 2 1 . 2 . 1 . 2 . . 4 1 . 1 . . . . 3 5 4 . Energy Cannon 6 | . . . . . 3 . . . . . . . . . . . . . 1 2 . Ballistic Gun 22 | . . . . . 3 . 3 . 3 . . 2 1 . . . 1 5 3 . 1 Ballistic Cannon 8 | . . . . . 1 . . . 1 2 . . . . . . . . 1 2 1 Launcher 4 | . . . . . . . . . . 1 . . . . 1 . . 1 . 1 . Special Weapon 9 | . . . . . . . . . 2 3 . . 1 . 1 . . . 1 . 1 Impact Weapon 3 | . . . . . . . . . . 1 . . . 1 . . . 1 . . . Slashing Weapon 9 | . . . . . 3 . 1 . . 3 . . . . . . . 2 . . . Piercing Weapon . | . . . . . . . . . . . . . . . . . . . . . . Special Melee Weapon 3 | . . . . . . . 1 . . . . . . . . . . . . 1 1 Unidentified Prototypes 12 | . . . . 1 4 . . . 1 3 . . 1 . . . . . 1 . 1 Parts Lost 108 | . . . 1 . 3 . 8 . . . 1 1 1 2 . 1 1 31 11 17 30 Power 14 | . . . . . . . . . . . . . . 1 . . . 6 1 . 6 Propulsion 36 | . . . . . 1 . 4 . . . 1 1 . . . 1 . 7 3 11 7 Utility 30 | . . . . . 1 . 2 . . . . . 1 . . . . 11 3 3 9 Weapon 28 | . . . 1 . 1 . 2 . . . . . . 1 . . 1 7 4 3 8 Highest Loss Streak 25 | . . . 1 . 3 . 2 . . . 1 1 1 1 . 1 1 14 5 7 25 To Critical Strikes 4 | . . . . . . . . . . . . . . . . . . 4 . . . Average Slot Usage (%) 95 | . 98 100 98 100 98 100 97 99 96 92 92 91 90 98 100 99 99 95 94 92 83 Engine 2 | . 14 14 14 14 . . 2 7 4 . . . . . . . . . . . . Core 5 | . . . . . 8 7 4 . 2 . . . . 7 6 5 5 6 8 6 6 Reactor 1 | . . . . . . . . . . 5 6 6 5 1 4 5 5 2 1 3 2 Treads 3 | . . . . . . . 1 . . . . . . . . . . 13 16 . . Leg 20 | . 28 28 28 28 26 30 26 29 30 32 32 26 25 29 29 28 29 14 8 3 3 Hover 1 | . . . . . . . . . . . . . . . . . . . . 7 7 Flight 1 | . . . . . . . . . . . . . . . . . . . . 11 2 Device 5 | . . . . . 13 7 7 7 2 6 6 6 5 5 5 5 5 4 3 5 5 Storage 7 | . 14 14 14 14 9 7 7 7 7 6 6 6 5 5 5 5 5 5 5 6 7 Processor 6 | . . . . . . 7 6 7 7 12 13 13 11 11 11 11 11 7 6 9 9 Hackware 6 | . . . . . . . . . 5 4 6 6 4 5 5 5 5 8 13 17 14 Protection 5 | . 12 14 14 14 4 7 6 7 6 1 . . 5 5 5 5 5 4 7 . 2 Energy Gun 7 | . 28 28 26 28 5 . 8 . . . 6 6 4 . . . . 1 9 4 8 Energy Cannon 1 | . . . . . 5 . . . . . . . . . . . . . 1 2 . Ballistic Gun 5 | . . . . . 13 15 6 15 10 . . 9 11 11 11 11 10 11 . . 1 Ballistic Cannon 3 | . . . . . 5 7 7 7 7 6 6 1 . . . . . . . 4 4 Special Weapon 1 | . . . . . . . . . . 4 . . . 5 4 5 5 2 2 . . Slashing Weapon 3 | . . . . . 5 7 6 7 7 5 6 6 5 1 . . . 1 5 . . Naked Turns . | . . . . . . . . . . . . . . . . . . . . . . Heaviest Build 107 | 13 22 22 52 22 66 70 75 75 80 88 81 81 78 92 98 98 98 101 104 107 94 Greatest Support 150 | 20 20 20 20 20 60 75 75 45 78 93 98 98 102 104 101 101 92 150 141 95 44 Greatest Overweight (x) 20 | 1 1 1 2 1 1 . 2 1 1 . 1 . . 1 . 1 1 1 1 4 20 Average Overweight (x) . | . . 1 . 1 . . 1 1 . . . . . . . . 1 . . 3 3 Largest Inventory Capacity 20 | 8 10 10 20 10 20 20 20 20 20 20 20 20 20 20 20 20 20 20 20 20 20 Average Capacity 18 | 7 9 10 10 10 17 20 20 20 20 20 20 20 20 20 20 20 20 20 20 20 20 Most Carried 20 | 8 10 10 10 8 20 19 20 20 20 20 20 20 19 20 20 20 20 20 20 16 20 Average Carried 16 | 5 8 9 9 8 15 18 19 20 19 19 19 19 17 19 20 19 19 18 18 12 15 Final Capacity 20 | 8 10 10 10 10 20 20 20 20 20 20 20 20 20 20 20 20 20 20 20 20 20 Final Carried 20 | 6 10 10 8 8 20 19 20 20 19 20 20 19 16 20 20 20 19 20 16 11 6 Class Distribution -------------------- 36% | Mutant 30% | Scavenger-Mutant 14% | Bothacker-Mutant 6% | Skirmisher 3% | Scavenger-Gunner Dominant Class ---------------- Mutant | -10/Materials Mutant | -10/Mines Mutant | -10/Exiles Mutant | -9/Mines Mutant | -8/Materials Mutant | -7/Factory Mutant | -7/Garrison Bothacker-Mutant | -7/Factory Bothacker-Skirmisher | -7/DSF Scavenger-Mutant | -6/Factory Bothacker-Mutant | -6/Lower Caves Mutant | -6/Lower Caves Mutant | -5/Factory Scavenger-Mutant | -5/Extension Scavenger-Mutant | -5/Cetus Scavenger-Mutant | -5/Archives Scavenger-Mutant | -5/Hub_04(d) Scavenger-Mutant | -5/Garrison Scavenger-Mutant | -4/Factory Bothacker-Mutant | -4/Garrison Bothacker-Mutant | -4/Factory Resources | -11 -10 -10 -10 -9 -8 -7 -7 -7 -7 -6 -6 -6 -5 -5 -5 -5 -5 -5 -4 -4 -4 ----------- Run | Jun Mat Min Exi Min Mat Fac Gar Fac DSF Fac Low Low Fac Ext Cet Arc Hub Gar Fac Gar Fac Matter Collected 5941 | 251 49 30 . . 639 . 420 . 592 204 210 85 90 251 182 58 20 1119 474 851 416 Remotely . | . . . . . . . . . . . . . . . . . . . . . . Salvage Created 7722 | . 170 182 . . 1126 . 884 . 281 204 188 45 256 572 145 346 139 1295 543 735 611 Parts 377 | . 13 17 . . 53 . 45 . 16 6 13 . 10 18 10 17 8 69 26 34 22 Haulers Intercepted . | . . . . . . . . . . . . . . . . . . . . . . Recyclers Shooed 2 | . . . . . . . . . . . . . . . . . . . 2 . . Parts Field Recycled . | . . . . . . . . . . . . . . . . . . . . . . Retrieved Matter . | . . . . . . . . . . . . . . . . . . . . . . Parts Self-Destructed 9 | . . . . . . . . . . . 9 . . . . . . . . . . Prevented . | . . . . . . . . . . . . . . . . . . . . . . Kills | -11 -10 -10 -10 -9 -8 -7 -7 -7 -7 -6 -6 -6 -5 -5 -5 -5 -5 -5 -4 -4 -4 ------- Run | Jun Mat Min Exi Min Mat Fac Gar Fac DSF Fac Low Low Fac Ext Cet Arc Hub Gar Fac Gar Fac Combat Hostiles Destroyed 177 | . 5 8 . . 29 . 24 . 7 3 3 1 3 8 7 4 2 31 9 21 12 Melee 34 | . . . . . 10 . 3 . . 3 2 . . 3 . . 1 8 3 1 . Guns 84 | . 5 7 . . 11 . 14 . 4 . . . 3 2 3 3 . 22 3 3 4 Cannons 41 | . . . . . 6 . 6 . 3 . 1 1 . . . . . . 1 15 8 AOE 7 | . . . . . 1 . 1 . . . . . . . 4 . . . . 1 . Classes Destroyed 18 | . 3 . . . 2 . 2 . 2 . . 1 1 2 . . . 2 1 1 1 Worker 2 | . . . . . 2 . . . . . . . . . . . . . . . . Tunneler 1 | . . . . . . . . . . . . . . . . . . . 1 . . Recycler 1 | . . . . . . . . . . . . . . 1 . . . . . . . Mechanic 1 | . . . . . . . . . . . . . 1 . . . . . . . . Operator 2 | . . . . . . . . . . . . . . 2 . . . . . . . Watcher 4 | . 2 . . . 1 . . . . . . . . . . . 1 . . . . Swarmer 73 | . 3 6 . . 11 . 14 . . . . . . 2 5 . . 18 . 14 . Cutter 2 | . . . . . . . . . . . . . . . . . . 2 . . . Grunt 45 | . 2 2 . . 14 . 6 . 3 1 1 . 2 2 . . 2 2 1 6 1 Brawler 8 | . . . . . . . 2 . . . . . 1 1 . . . 2 . . 2 Duelist 2 | . . . . . . . . . 1 . . . . . . . . 1 . . . Protector 1 | . . . . . . . . . . . . . . . . . . . . . 1 Sentry 21 | . . . . . 4 . 1 . 1 2 1 . . 3 . 4 . 3 . . 2 Specialist 1 | . . . . . . . . . . . . . . . . . . . . 1 . Hunter 4 | . . . . . . . 1 . 1 . 1 . . . 1 . . . . . . Programmer 16 | . . . . . . . . . . . . . . . . . . 2 8 . 6 Heavy 1 | . . . . . . . . . 1 . . . . . . . . . . . . Behemoth 2 | . . . . . . . . . . . . 1 . . . . . 1 . . . Cetus Guard 1 | . . . . . . . . . . . . . . . 1 . . . . . . Best Kill Streak 10 | . 1 3 . . 8 . 4 . 4 2 1 1 4 3 6 3 2 5 4 10 3 Combat Bots Only 10 | . 1 3 . . 6 . 4 . 4 2 1 1 3 3 6 3 2 5 2 10 3 Max Kills in Single Turn 3 | . 1 1 . . 2 . 1 . 1 1 1 1 1 1 2 1 1 3 1 2 1 Gunslinging 1 | . . . . . . . . . . . . . . . . . . 1 . . . Exploded 2 | . . . . . 1 . 1 . . . . . . . 2 . . . . 1 . Melee 1 | . . . . . 1 . 1 . . 1 1 . . 1 . . 1 1 1 1 . Uniques/NPCs Destroyed . | . . . . . . . . . . . . . . . . . . . . . . Combat | -11 -10 -10 -10 -9 -8 -7 -7 -7 -7 -6 -6 -6 -5 -5 -5 -5 -5 -5 -4 -4 -4 -------- Run | Jun Mat Min Exi Min Mat Fac Gar Fac DSF Fac Low Low Fac Ext Cet Arc Hub Gar Fac Gar Fac Damage Taken 18749 | . 186 197 118 . 1543 . 1392 . 775 176 429 292 368 505 368 328 166 4331 1695 1818 4062 Core 2503 | . 33 7 46 . 385 . 183 . 127 11 34 24 18 . 58 27 18 368 182 129 853 Absorbed by Shields 125 | . . . . . . . . . . . . . . 12 113 . . . . . . Regen/Repaired (Parts) 288 | . . . . . . . . 66 . . . . . . . . . . 222 . . Core Remaining (%) 65 | 100 . . . 65 30 . . . 55 . . 91 . . . . . 51 . . . Volleys Fired 450 | . 22 14 . . 43 . 29 . 25 4 1 5 14 9 16 6 . 73 36 117 36 Largest 4 | . 2 2 . . 4 . 3 . 3 1 1 1 3 2 2 2 . 3 3 3 3 Hottest 225 | . 100 100 . . 192 . 148 . 108 5 75 75 140 60 60 60 . 149 186 225 198 Shots Fired 966 | . 44 28 . . 110 . 80 . 68 4 1 5 42 17 28 12 . 182 77 172 96 Gun 693 | . 44 28 . . 70 . 51 . 43 . . . 42 16 24 12 . 180 70 51 62 Cannon 254 | . . . . . 40 . 29 . 22 . 1 5 . . . . . . 6 120 31 Launcher 6 | . . . . . . . . . . . . . . . 4 . . 1 . 1 . Special 13 | . . . . . . . . . 3 4 . . . 1 . . . 1 1 . 3 Kinetic 602 | . . . . . 72 . 48 . 65 . 1 5 28 16 24 12 . 155 37 88 51 Thermal 233 | . 44 28 . . . . . . . . . . 14 . . . . 25 38 42 42 Explosive 6 | . . . . . . . . . . . . . . . 4 . . 1 . 1 . Electromagnetic 112 | . . . . . 38 . 32 . . . . . . . . . . . 1 41 . Robot Hit Streak 15 | . 4 11 . . 9 . 15 . 5 6 7 12 14 14 11 2 . 10 12 12 14 Robot Miss Streak 10 | . 2 4 . . 2 . 4 . 3 . . . 2 1 1 2 . 10 2 5 2 Penetration Max 1 | . . . . . . . . . 1 . . . 1 1 . . . 1 1 . 1 Secondary Targets 14 | . . 2 . . . . . . . . . . 2 . 2 . . 8 . . . Max Gunslinging Chain 2 | . . 1 . . . . . . . . . . 1 . 1 . . 2 . . . Capacitor 1 | . . . . . . . . . . . . . . . . . . . . . 1 Shots Hit Robots 713 | . 23 16 . . 101 . 82 . 39 13 16 5 23 29 23 10 4 136 62 54 77 Core Hits 306 | . 9 10 . . 43 . 46 . 13 6 7 2 8 8 17 5 2 50 21 29 30 Critical Kills 8 | . . . . . . . . . . . . . . 1 . 3 1 2 . . 1 Critical Parts Destroyed 9 | . . . . . . . . . . . . . 1 2 1 1 . 3 . . 1 Critical Strikes 62 | . 2 2 . . 6 . 7 . . 2 3 1 3 4 1 4 1 9 4 3 10 Burn 9 | . 2 2 . . . . . . . . . . . . . . . . 1 . 4 Destroy 16 | . . . . . . . . . . . . . 3 2 1 3 . 4 . . 3 Blast 10 | . . . . . 1 . 2 . . . . 1 . . . . . . . 3 3 Corrupt 1 | . . . . . 1 . . . . . . . . . . . . . . . . Smash 6 | . . . . . . . . . . . . . . 2 . 1 1 2 . . . Sever 20 | . . . . . 4 . 5 . . 2 3 . . . . . . 3 3 . . Melee Attacks 307 | . . . . . 54 1 69 2 . 10 18 . 8 18 . 5 5 80 14 7 16 Impact 74 | . . . . . . . . . . . . . . 16 . 5 5 48 . . . Slashing 208 | . . . . . 54 1 63 2 . 10 18 . 8 2 . . . 32 14 4 . Piercing . | . . . . . . . . . . . . . . . . . . . . . . Sneak Attacks 14 | . . . . . 1 . 6 . . . . . . 3 . . . . . . 4 Combat Hostiles 1 | . . . . . . . . . . . . . . 1 . . . . . . . Follow-up Attacks . | . . . . . . . . . . . . . . . . . . . . . . Damage Inflicted 20760 | . 289 198 . . 2752 . 1965 . 1030 351 640 343 689 1104 1182 325 165 4116 1736 1713 2162 Guns 10503 | . 289 198 . . 950 . 741 . 612 . . . 689 435 530 200 . 2795 1380 524 1160 Cannons 3808 | . . . . . 595 . 343 . 418 . 62 343 . . . . . . 166 879 1002 Explosions 1090 | . . . . . 33 . 142 . . . . . . . 652 . . . . 263 . Melee 5350 | . . . . . 1174 . 739 . . 351 578 . . 669 . 125 165 1321 181 47 . Ramming 9 | . . . . . . . . . . . . . . . . . . . 9 . . Kinetic 10149 | . . . . . 1074 . 605 . 1030 . 62 343 403 435 530 200 . 2533 719 702 1513 Thermal 2984 | . 289 198 . . 33 . 142 . . . . . 286 . . . . 262 807 318 649 Explosive 871 | . . . . . . . . . . . . . . . 652 . . . . 219 . Electromagnetic 1397 | . . . . . 471 . 479 . . . . . . . . . . . 20 427 . Impact 1706 | . . . . . . . . . . . . . . 634 . 125 165 782 . . . Slashing 3644 | . . . . . 1174 . 739 . . 351 578 . . 35 . . . 539 181 47 . Piercing . | . . . . . . . . . . . . . . . . . . . . . . Highest Corruption 53 | . 1 1 1 1 . . . . . . . . . . . . . 53 12 20 29 Average Corruption 11 | . 1 1 1 1 . . . . . . . . . . . . . 25 7 12 21 Corruption Purged . | . . . . . . . . . . . . . . . . . . . . . . Corruption Blocked . | . . . . . . . . . . . . . . . . . . . . . . Effects 293 | . 3 6 6 2 . . . . . . . . . . . . . 76 42 91 67 Message Errors 61 | . 1 1 2 . . . . . . . . . . . . . . 12 10 22 13 Matter Fused 53 | . . 2 1 . . . . . . . . . . . . . . 19 11 8 12 Heat Flow Errors 44 | . . . . 1 . . . . . . . . . . . . . 8 5 22 8 Energy Discharges 38 | . 1 1 . 1 . . . . . . . . . . . . . 8 7 13 7 Parts Rejected 1 | . . . . . . . . . . . . . . . . . . 1 . . . Parts Fused 2 | . . . . . . . . . . . . . . . . . . . 2 . . Data Loss (minor) 33 | . 1 . . . . . . . . . . . . . . . . 11 5 9 7 Data Loss (major) 15 | . . 2 3 . . . . . . . . . . . . . . 1 . 6 3 Misfires 16 | . . . . . . . . . . . . . . . . . . 7 . 3 6 Alerts 12 | . . . . . . . . . . . . . . . . . . 1 1 5 5 Misdirections 2 | . . . . . . . . . . . . . . . . . . . . 1 1 Weapon Failures 16 | . . . . . . . . . . . . . . . . . . 8 1 2 5 Overload Shots . | . . . . . . . . . . . . . . . . . . . . . . Overflow Damage 680 | . . . . . 11 . 6 . 24 3 . . . 246 43 47 14 170 . 15 101 Projectiles 146 | . . . . . . . 6 . 24 . . . . . . . . . . 15 101 Explosions 43 | . . . . . . . . . . . . . . . 43 . . . . . . Melee 491 | . . . . . 11 . . . . 3 . . . 246 . 47 14 170 . . . Knockbacks 21 | . . . . . 2 . 4 . 1 . . . . 2 . . 1 2 . 2 7 Impact 5 | . . . . . . . . . . . . . . 2 . . 1 2 . . . Kinetic 16 | . . . . . 2 . 4 . 1 . . . . . . . . . . 2 7 Secondary . | . . . . . . . . . . . . . . . . . . . . . . Self-Inflicted Damage 23 | . . . . . . . 23 . . . . . . . . . . . . . . Shots 1 | . . . . . . . 1 . . . . . . . . . . . . . . Rammed . | . . . . . . . . . . . . . . . . . . . . . . Targets Rammed 1 | . . . . . . . . . . . . . . . . . . . 1 . . Kicked 1 | . . . . . . . . . . . . . . . . . . . 1 . . Crushed . | . . . . . . . . . . . . . . . . . . . . . . Highest Temperature 802 | . 289 240 . 165 210 . 102 . 802 214 . 2 50 . . . . 318 298 469 433 Average Temperature 110 | . 93 108 . 85 73 . 31 . 208 125 . 2 21 . . . . 112 106 119 111 Received Heat Transfer 3567 | . 78 42 . . 618 . 342 . 186 78 171 24 189 67 35 54 81 444 79 184 895 Effects 30 | . 1 2 . . . . . . 6 . . . . . . . . 3 . 7 11 Shutdowns 4 | . . . . . . . . . 1 . . . . . . . . . . 2 1 Energy Bleed 3 | . . . . . . . . . . . . . . . . . . . . 2 1 Interference 12 | . 1 2 . . . . . . 4 . . . . . . . . 3 . . 2 Matter Decay 4 | . . . . . . . . . 1 . . . . . . . . . . 2 1 Short Circuit 2 | . . . . . . . . . . . . . . . . . . . . . 2 Damage (minor) 1 | . . . . . . . . . . . . . . . . . . . . 1 . Damage (major) 4 | . . . . . . . . . . . . . . . . . . . . . 4 Siege Activations . | . . . . . . . . . . . . . . . . . . . . . . Robots Corrupted 2 | . . . . . 1 . . . . . . . . . . . . . . 1 . Combat Hostiles 2 | . . . . . 1 . . . . . . . . . . . . . . 1 . Parts Fried 22 | . . . . . 2 . 4 . . . . . . 5 2 . . 2 . 7 . Impact Corruptions 17 | . . . . . . . . . . . . . . 11 . 1 1 4 . . . Robots Melted 3 | . . 1 . . . . . . . . . . . . . . . . 2 . . Combat Hostiles 3 | . . 1 . . . . . . . . . . . . . . . . 2 . . Parts Melted 13 | . 2 2 . . . . . . . . . . . . . . . . 5 . 4 Heat Transferred 5899 | . 987 740 . . 50 . 150 . . . . . 444 . . . . 407 1036 446 1639 Parts Sabotaged . | . . . . . . . . . . . . . . . . . . . . . . Parts Stolen . | . . . . . . . . . . . . . . . . . . . . . . Parts Stripped . | . . . . . . . . . . . . . . . . . . . . . . Power Chain Reactions 4 | . . . . . 1 . 2 . . . . . . . . . . . . 1 . Missiles Intercepted . | . . . . . . . . . . . . . . . . . . . . . . Alert | -11 -10 -10 -10 -9 -8 -7 -7 -7 -7 -6 -6 -6 -5 -5 -5 -5 -5 -5 -4 -4 -4 ------- Run | Jun Mat Min Exi Min Mat Fac Gar Fac DSF Fac Low Low Fac Ext Cet Arc Hub Gar Fac Gar Fac Peak Influence 2049 | . 163 155 . . 666 307 2049 1116 932 555 . . 228 280 596 401 132 1044 548 1202 632 Initial 1075 | . . . . . . 302 214 1075 781 489 . . 108 111 108 238 70 92 548 100 630 Average 462 | . 63 30 . . 223 302 1069 1097 873 451 . . 128 152 500 343 78 452 313 613 498 Maximum Alert Level 5 | . . . . . 2 1 5 4 3 2 . . 1 1 2 2 . 3 2 4 2 Low Security (%) 32 | 100 100 100 . 100 57 . . . . . . . 90 89 8 . 100 26 9 9 . Level 1 18 | . . . . . 17 100 7 . . 19 . . 9 10 1 37 . 30 71 4 18 Level 2 27 | . . . . . 25 . 19 . . 80 . . . . 89 62 . 11 19 51 81 Level 3 13 | . . . . . . . 32 32 100 . . . . . . . . 31 . 27 . Level 4 4 | . . . . . . . 20 67 . . . . . . . . . . . 6 . Level 5 3 | . . . . . . . 20 . . . . . . . . . . . . . . High Security . | . . . . . . . . . . . . . . . . . . . . . . Max Security . | . . . . . . . . . . . . . . . . . . . . . . Sterilizations 1 | . . . . . . . . . 1 . . . . . . . . . . . . Squads Dispatched 25 | . 1 . . . 7 . . . 2 . . . 2 2 . . 1 . 5 . 5 Investigation 3 | . 1 . . . 2 . . . . . . . . . . . . . . . . Extermination 8 | . . . . . . . . . . . . . 1 . . . . . 4 . 3 Reinforcement 12 | . . . . . 5 . . . 2 . . . 1 2 . . 1 . 1 . . Assault 2 | . . . . . . . . . . . . . . . . . . . . . 2 Garrison . | . . . . . . . . . . . . . . . . . . . . . . Intercept . | . . . . . . . . . . . . . . . . . . . . . . Searches Triggered . | . . . . . . . . . . . . . . . . . . . . . . Construction Impeded 2 | . . . . . 1 . . . . . . . 1 . . . . . . . . Haulers Reinforced . | . . . . . . . . . . . . . . . . . . . . . . Active Scanning Responses . | . . . . . . . . . . . . . . . . . . . . . . Cargo Convoy Interrupts . | . . . . . . . . . . . . . . . . . . . . . . Stealth | -11 -10 -10 -10 -9 -8 -7 -7 -7 -7 -6 -6 -6 -5 -5 -5 -5 -5 -5 -4 -4 -4 --------- Run | Jun Mat Min Exi Min Mat Fac Gar Fac DSF Fac Low Low Fac Ext Cet Arc Hub Gar Fac Gar Fac Distress Signals 12 | . 1 . . . 3 . . . . . . . 2 4 2 . . . . . . Communications Jammed . | . . . . . . . . . . . . . . . . . . . . . . Distress Signals . | . . . . . . . . . . . . . . . . . . . . . . Times Spotted 302 | . 13 8 1 . 60 . 28 . 13 3 7 1 7 25 16 4 4 36 17 31 28 Peak Tracking Total 9 | . 3 3 1 . 6 . 5 . 4 2 3 1 5 5 9 1 3 5 2 9 7 Tactical Retreats 35 | . 2 . . . 9 . 2 . 1 . 3 . . 5 . . . 2 1 7 3 Traps | -11 -10 -10 -10 -9 -8 -7 -7 -7 -7 -6 -6 -6 -5 -5 -5 -5 -5 -5 -4 -4 -4 ------- Run | Jun Mat Min Exi Min Mat Fac Gar Fac DSF Fac Low Low Fac Ext Cet Arc Hub Gar Fac Gar Fac Traps Triggered 14 | . 2 . . . 1 . 3 . 1 2 . . . . . . . 4 . 1 . Indirectly . | . . . . . . . . . . . . . . . . . . . . . . Trap Hack Attempts 88 | . . . . . . . . . . . . . . . . . . . . 56 32 Triggered . | . . . . . . . . . . . . . . . . . . . . . . Disarmed 7 | . . . . . 6 . . . . . . . . . . . . . . . 1 Reprogrammed 9 | . . . . . 2 . . . . . . . . . . . . . . 3 4 Reused . | . . . . . . . . . . . . . . . . . . . . . . Traps Extracted . | . . . . . . . . . . . . . . . . . . . . . . Installed . | . . . . . . . . . . . . . . . . . . . . . . Triggered 1 | . . . . . . . . . . . 1 . . . . . . . . . . Machines | -11 -10 -10 -10 -9 -8 -7 -7 -7 -7 -6 -6 -6 -5 -5 -5 -5 -5 -5 -4 -4 -4 ---------- Run | Jun Mat Min Exi Min Mat Fac Gar Fac DSF Fac Low Low Fac Ext Cet Arc Hub Gar Fac Gar Fac Machines Disabled 27 | . . 1 . . 2 . 8 . . . . . 1 1 4 2 . 3 2 3 . Max in Single Turn 1 | . . 1 . . 1 . 1 . . . . . 1 . 1 1 . 1 1 1 . Garrison Access 1 | . . . . . . . . 1 . . . . . . . . . . . . . Garrison Relay 11 | . . . . . . . 5 . . . . . . . . . . 3 . 3 . Machines Repaired . | . . . . . . . . . . . . . . . . . . . . . . Machines Sabotaged . | . . . . . . . . . . . . . . . . . . . . . . Overloaded Fab Kills . | . . . . . . . . . . . . . . . . . . . . . . Hacking | -11 -10 -10 -10 -9 -8 -7 -7 -7 -7 -6 -6 -6 -5 -5 -5 -5 -5 -5 -4 -4 -4 --------- Run | Jun Mat Min Exi Min Mat Fac Gar Fac DSF Fac Low Low Fac Ext Cet Arc Hub Gar Fac Gar Fac Machines Accessed 52 | . 5 1 2 . 7 1 3 3 . 4 2 . 2 6 3 1 1 2 5 1 3 Terminals 36 | . 4 1 . . 5 . 3 1 . 4 1 . 1 6 3 . . 2 3 1 1 Fabricators . | . . . . . . . . . . . . . . . . . . . . . . Repair Stations 3 | . . . . . 1 . . 1 . . . . . . . . . . 1 . . Recycling Units 4 | . 1 . . . . . . . . . . . 1 . . . . . . . 2 Scanalyzers 1 | . . . . . 1 . . . . . . . . . . . . . . . . Garrison Access 4 | . . . . . . 1 . 1 . . . . . . . . 1 . 1 . . Total Hacks 103 | . 9 3 7 . 18 3 3 6 . 10 2 . 5 11 4 1 2 3 11 1 4 Successful 51 | . 5 . 7 . 13 1 1 5 . 2 2 . 3 2 . 1 2 . 6 . 1 Failed 52 | . 4 3 . . 5 2 2 1 . 8 . . 2 9 4 . . 3 5 1 3 Catastrophic 10 | . 1 . . . 1 . . . . 1 . . . 2 1 . . 1 1 . 2 Database Lockouts . | . . . . . . . . . . . . . . . . . . . . . . Manual 2 | . . . 1 . . . . . . . . . . . 1 . . . . . . Terminals 68 | . 8 3 . . 13 . 3 2 . 10 1 . 2 11 4 . . 3 6 1 1 Fabricators . | . . . . . . . . . . . . . . . . . . . . . . Repair Stations 8 | . . . . . 2 . . 2 . . . . . . . . . . 4 . . Recycling Units 7 | . 1 . . . . . . . . . . . 3 . . . . . . . 3 Scanalyzers 3 | . . . . . 3 . . . . . . . . . . . . . . . . Garrison Access 8 | . . . . . . 3 . 2 . . . . . . . . 2 . 1 . . Terminal Hacks 35 | . 4 . 7 . 11 . 1 1 . 2 2 . 1 2 . 1 . . 3 . . Record 12 | . . . 7 . 2 . . . . . 1 . . . . 1 . . 1 . . Part Schematic 1 | . . . . . . . . . . . . . . 1 . . . . . . . Robot Analysis 1 | . 1 . . . . . . . . . . . . . . . . . . . . Prototype ID Bank 3 | . . . . . 2 . . . . 1 . . . . . . . . . . . Open Door 1 | . . . . . . . . . . . 1 . . . . . . . . . . Open DSF 1 | . . . . . . . . 1 . . . . . . . . . . . . . Branch Access Points 1 | . 1 . . . . . . . . . . . . . . . . . . . . Emergency Access Points 3 | . . . . . 1 . 1 . . . . . 1 . . . . . . . . Recycling Unit Index 1 | . . . . . . . . . . 1 . . . . . . . . . . . Locate Traps 3 | . . . . . 2 . . . . . . . . 1 . . . . . . . Disarm Traps 1 | . . . . . 1 . . . . . . . . . . . . . . . . Reprogram Traps 1 | . . . . . 1 . . . . . . . . . . . . . . . . Dispatch Records 1 | . . . . . . . . . . . . . . . . . . . 1 . . Maintenance Status 1 | . . . . . . . . . . . . . . . . . . . 1 . . Zone Layout 4 | . 2 . . . 2 . . . . . . . . . . . . . . . . Fabricator Hacks . | . . . . . . . . . . . . . . . . . . . . . . Repair Station Hacks 5 | . . . . . 1 . . 2 . . . . . . . . . . 2 . . Scan Component 3 | . . . . . 1 . . 1 . . . . . . . . . . 1 . . Repair 2 | . . . . . . . . 1 . . . . . . . . . . 1 . . Recycling Unit Hacks 4 | . 1 . . . . . . . . . . . 2 . . . . . . . 1 Report Inventory 3 | . 1 . . . . . . . . . . . 1 . . . . . . . 1 Retrieve Components 1 | . . . . . . . . . . . . . 1 . . . . . . . . Scanalyzer 1 | . . . . . 1 . . . . . . . . . . . . . . . . Insert Component 1 | . . . . . 1 . . . . . . . . . . . . . . . . Garrison Access Hacks 6 | . . . . . . 1 . 2 . . . . . . . . 2 . 1 . . Unlock Access 3 | . . . . . . 1 . . . . . . . . . . 1 . 1 . . Seal Access 1 | . . . . . . . . 1 . . . . . . . . . . . . . Coupler Status 2 | . . . . . . . . 1 . . . . . . . . 1 . . . . Unauthorized Hacks . | . . . . . . . . . . . . . . . . . . . . . . Terminals . | . . . . . . . . . . . . . . . . . . . . . . Fabricators . | . . . . . . . . . . . . . . . . . . . . . . Repair Stations . | . . . . . . . . . . . . . . . . . . . . . . Recycling Units . | . . . . . . . . . . . . . . . . . . . . . . Scanalyzers . | . . . . . . . . . . . . . . . . . . . . . . Garrison Access . | . . . . . . . . . . . . . . . . . . . . . . Data Cores Recovered . | . . . . . . . . . . . . . . . . . . . . . . Used . | . . . . . . . . . . . . . . . . . . . . . . Hacking Detections 41 | . 4 1 . . 6 1 3 2 . 4 . . 1 6 3 . 1 2 3 1 3 Full Trace Events 1 | . . . . . 1 . . . . . . . . . . . . . . . . Feedback Events . | . . . . . . . . . . . . . . . . . . . . . . Feedback Blocked . | . . . . . . . . . . . . . . . . . . . . . . Robot Schematics Acquired . | . . . . . . . . . . . . . . . . . . . . . . Robots Built . | . . . . . . . . . . . . . . . . . . . . . . Authchips . | . . . . . . . . . . . . . . . . . . . . . . Time . | . . . . . . . . . . . . . . . . . . . . . . Total Robot Build Rating . | . . . . . . . . . . . . . . . . . . . . . . Part Schematics Acquired 1 | . . . . . . . . . . . . . . 1 . . . . . . . Parts Built . | . . . . . . . . . . . . . . . . . . . . . . Authchips . | . . . . . . . . . . . . . . . . . . . . . . Time . | . . . . . . . . . . . . . . . . . . . . . . Total Part Build Rating . | . . . . . . . . . . . . . . . . . . . . . . Parts Repaired 2 | . . . . . . . . 1 . . . . . . . . . . 1 . . Time 47 | . . . . . . . . 19 . . . . . . . . . . 28 . . Parts Recycled . | . . . . . . . . . . . . . . . . . . . . . . Recycled Matter . | . . . . . . . . . . . . . . . . . . . . . . Retrieved Matter . | . . . . . . . . . . . . . . . . . . . . . . Retrieved Components 2 | . . . . . . . . . . . . . 2 . . . . . . . . Parts Scanalyzed 1 | . . . . . 1 . . . . . . . . . . . . . . . . Part Schematics Acquired . | . . . . . . . . . . . . . . . . . . . . . . Parts Damaged . | . . . . . . . . . . . . . . . . . . . . . . Bothacking | -11 -10 -10 -10 -9 -8 -7 -7 -7 -7 -6 -6 -6 -5 -5 -5 -5 -5 -5 -4 -4 -4 ------------ Run | Jun Mat Min Exi Min Mat Fac Gar Fac DSF Fac Low Low Fac Ext Cet Arc Hub Gar Fac Gar Fac Used RIF Installer 3 | . . . . . . . 1 . . . . . . . . . . 1 . 1 . Robot Detection 1 | . . . . . . . . . . . . . . . . . . 1 . . . Autooverride 1 | . . . . . . . . . . . . . . . . . . . . 1 . Robots Hacked 19 | . . . . . . . . . 1 3 . . . 1 . . . 1 1 3 9 Non-combat 6 | . . . . . . . . . . 3 . . . . . . . . 1 . 2 Combat 13 | . . . . . . . . . 1 . . . . 1 . . . 1 . 3 7 Robot Hacks Applied 22 | . . . . . . . . . 1 4 . . . 1 . . . 1 1 3 11 parse_system 2 | . . . . . . . . . . . . . . . . . . . . . 2 no_distress 1 | . . . . . . . . . . . . . . . . . . . . . 1 map_walls 1 | . . . . . . . . . . 1 . . . . . . . . . . . drop_inventory 1 | . . . . . . . . . . 1 . . . . . . . . . . . locate_stockpiles 1 | . . . . . . . . . . 1 . . . . . . . . . . . ignore_parts 1 | . . . . . . . . . . 1 . . . . . . . . . . . find_station 2 | . . . . . . . . . . . . . . . . . . . 1 . 1 find_shortcuts 1 | . . . . . . . . . . . . . . . . . . . . . 1 overload_power 1 | . . . . . . . . . . . . . . . . . . . . . 1 overwrite_iff 6 | . . . . . . . . . 1 . . . . 1 . . . . . 1 3 streamctrl_high 2 | . . . . . . . . . . . . . . . . . . . . . 2 formatsys_high 3 | . . . . . . . . . . . . . . . . . . 1 . 2 . Relay Couplers Released 44 | . . . . . . . 18 . . . . . . . . . . 12 . 14 . Machine Destruction 44 | . . . . . . . 18 . . . . . . . . . . 12 . 14 . Attached 12 | . . . . . . . . . 1 1 . 1 1 . . . . 4 1 1 2 Fabnet Peak Effective % . | . . . . . . . . . . . . . . . . . . . . . . Robots Rewired 18 | . . . . . . . 3 . . . . . . 15 . . . . . . . Allies Hacked 1 | . . . . . . . 1 . . . . . . . . . . . . . . Hacks Repelled . | . . . . . . . . . . . . . . . . . . . . . . Allies | -11 -10 -10 -10 -9 -8 -7 -7 -7 -7 -6 -6 -6 -5 -5 -5 -5 -5 -5 -4 -4 -4 -------- Run | Jun Mat Min Exi Min Mat Fac Gar Fac DSF Fac Low Low Fac Ext Cet Arc Hub Gar Fac Gar Fac Total Allies 31 | . . . . . . . 5 . 1 . . . . 17 . . . 1 . 3 4 Largest Group 10 | . . . . . . . 4 4 4 . . . . 10 10 1 . 1 . 1 2 Highest-Rated Group 418 | . . . . . . . 157 143 143 . . . . 418 418 133 . 29 . 47 116 Highest-Rated Ally 159 | . . . . . . . 95 95 95 . . . . 159 152 133 . 29 . 47 58 Total Orders 3 | . . . . . . . . . . . . . . . . . . . . 3 . EXPLORE 2 | . . . . . . . . . . . . . . . . . . . . 2 . RETURN 1 | . . . . . . . . . . . . . . . . . . . . 1 . Ally Attacks 181 | . . . . . . . 5 2 23 . . . . 74 44 . . 3 . 13 17 Total Damage 4657 | . . . . . . . 290 50 390 . . . . 1507 1550 . . 38 . 197 635 Kills 32 | . . . . . . . 3 1 2 . . . . 11 13 . . . . . 2 Allies Corrupted 2 | . . . . . . . 1 . . . . . . . . . . . . 1 . Allies Melted 1 | . . . . . . . . . . . . . . . . . . . . . 1 Intel | -11 -10 -10 -10 -9 -8 -7 -7 -7 -7 -6 -6 -6 -5 -5 -5 -5 -5 -5 -4 -4 -4 ------- Run | Jun Mat Min Exi Min Mat Fac Gar Fac DSF Fac Low Low Fac Ext Cet Arc Hub Gar Fac Gar Fac Robot Analysis Total 1 | . 1 . . . . . . . . . . . . . . . . . . . . Derelict Logs Recovered 6 | . . 3 . . . . . . . . 1 2 . . . . . . . . . Drone Launches 2 | . . . . . . . . . . . . . . . . . . . . 2 . Drone Recoveries 2 | . . . . . . . . . . . . . . . . . . . . 2 . Exploration | -11 -10 -10 -10 -9 -8 -7 -7 -7 -7 -6 -6 -6 -5 -5 -5 -5 -5 -5 -4 -4 -4 ------------- Run | Jun Mat Min Exi Min Mat Fac Gar Fac DSF Fac Low Low Fac Ext Cet Arc Hub Gar Fac Gar Fac Turns Passed 21571 | 70 874 1001 949 55 2728 108 3000 197 363 735 629 238 337 1456 363 455 166 2117 2016 2418 1296 Spaces Moved 9868 | 49 460 487 515 28 1153 79 1346 82 141 514 511 202 215 892 231 216 76 842 908 584 337 Core 26 | 21 . . . . . . . . . . . . . . . . . . . . 5 Treads 905 | . . . . . . . . . . . . . . . . . . 449 456 . . Legs 8410 | 28 460 487 515 28 1153 79 1346 82 141 514 511 202 215 892 231 216 76 393 452 221 168 Wheels . | . . . . . . . . . . . . . . . . . . . . . . Hover 525 | . . . . . . . . . . . . . . . . . . . . 363 162 Flight 2 | . . . . . . . . . . . . . . . . . . . . . 2 Fastest Speed 50 | 50 120 190 120 190 120 127 127 187 102 102 106 106 110 112 120 120 190 160 160 187 102 Average Speed 173 | 107 164 190 182 190 181 127 190 187 145 105 106 109 110 121 120 180 190 174 176 302 293 Slowest Speed 1050 | 120 190 190 260 190 200 127 265 187 187 106 182 110 112 185 120 190 190 240 240 400 1050 Overloaded Moves . | . . . . . . . . . . . . . . . . . . . . . . Propulsion Burnouts . | . . . . . . . . . . . . . . . . . . . . . . Robots Hopped . | . . . . . . . . . . . . . . . . . . . . . . Cave-ins Triggered 2 | . . . . . . . . . . . . . . . . . . 1 . 1 . Exploration Rate (%) 47 | 4 68 83 92 11 78 3 96 3 86 9 76 23 5 87 67 98 13 54 16 58 4 Regions Visited 21 Branch Regions 9 Pre-discovered Areas 3 | . . 2 1 . . . . . . . . . . . . . . . . . . Known Exits Taken 5 | . 1 . . . . 1 . 1 . . . . . . . . 1 . 1 . . Unknown Exits Taken 12 | 1 . 1 1 1 1 . . . . 1 1 1 1 1 1 1 . . . . . Scrap Searched 10 | . . 3 . . . . . . . . 5 2 . . . . . . . . . Spaces Dug 101 | . . . . . 13 1 9 2 . 1 . . 9 1 . 2 . 23 2 38 . Terrain Destroyed 300 | . . . . . 23 1 10 2 1 1 . . 21 11 80 10 . 43 5 78 14 Melee 59 | . . . . . 13 1 9 2 . 1 . . 7 1 . 2 . 23 . . . Projectile 144 | . . . . . 6 . . . . . . . 14 10 8 8 . 5 5 74 14 AOE 94 | . . . . . 4 . 1 . . . . . . . 72 . . 13 . 4 . Terrain Rammed . | . . . . . . . . . . . . . . . . . . . . . . Walls Destroyed . | . . . . . . . . . . . . . . . . . . . . . . Machines Disabled . | . . . . . . . . . . . . . . . . . . . . . . Actions | -11 -10 -10 -10 -9 -8 -7 -7 -7 -7 -6 -6 -6 -5 -5 -5 -5 -5 -5 -4 -4 -4 --------- Run | Jun Mat Min Exi Min Mat Fac Gar Fac DSF Fac Low Low Fac Ext Cet Arc Hub Gar Fac Gar Fac Total 13097 | 66 538 537 523 29 1633 85 1622 123 250 686 566 211 271 1223 287 263 90 1216 1233 1082 563 Wait 1614 | . 36 26 . . 292 . 122 39 39 103 31 . 25 153 37 29 7 107 229 263 76 Move 9843 | 48 459 486 514 27 1152 78 1344 81 140 513 510 201 214 891 230 215 75 840 907 581 337 Hop . | . . . . . . . . . . . . . . . . . . . . . . Pick Up 230 | 12 10 5 2 . 41 2 20 . 12 11 2 1 2 15 . 4 . 42 12 15 22 Fast Attach 18 | . 1 . . . 2 . . 1 2 3 1 . . . . . . 1 6 . 1 Attach 140 | 6 1 . 2 . 13 3 8 . 1 3 . 2 5 3 . 1 1 35 11 21 24 Detach 6 | . . . . . 1 . . . . 1 . . . . . . . . . 1 3 Swap 98 | . 2 1 2 2 11 . 8 . 12 15 1 1 1 8 3 . 1 15 7 2 6 Drop 132 | . 7 5 3 . 24 1 12 . 14 13 2 1 2 11 1 3 1 8 10 5 9 Fire 450 | . 22 14 . . 43 . 29 . 25 4 1 5 14 9 16 6 . 73 36 117 36 Melee 307 | . . . . . 54 1 69 2 . 10 18 . 8 18 . 5 5 80 14 7 16 Ram 1 | . . . . . . . . . . . . . . . . . . . . . 1 Kick 1 | . . . . . . . . . . . . . . . . . . . 1 . . Crush . | . . . . . . . . . . . . . . . . . . . . . . Escape Stasis 54 | . . . . . . . 10 . 5 10 . . . . . . . 15 . 14 . Rewire 115 | . . . . . . . . . . . . . . 115 . . . . . . . Trap 88 | . . . . . . . . . . . . . . . . . . . . 56 32 Miscellaneous . | . . . . . . . . . . . . . . . . . . . . . . Route ------- -11/Junkyard -10/Materials (discovered 3 exits: [*Mat x2] / *Min) -10/Mines (discovered 2 exits: [*Mat] / *Exi) -10/Exiles (discovered 2 exits: [*Min x2]) -9/Mines -8/Materials -7/Factory -7/Garrison (discovered 3 exits: *Fac x3) -7/Factory -7/DSF -6/Factory -6/Lower Caves -6/Lower Caves -5/Factory (discovered 2 exits: [*Upp] / *Ext) -5/Extension (discovered 2 exits: *Fac / *Cet) -5/Cetus -5/Archives (discovered 3 exits: *Fac / *Hub x2) -5/Hub_04(d) -5/Garrison (discovered 2 exits: *Fac x2) -4/Factory -4/Garrison (discovered 2 exits: *Fac x2) -4/Factory History --------- Turn | Location | Event 18 | -11/Junkyard | Discovered new exit (range 14) 71 | -11/Junkyard | Entered Materials 188 | -10/Materials | Identified exit to Mines 330 | -10/Materials | Build established: Mutant 444 | -10/Materials | Discovered new exit (range 13) 769 | -10/Materials | Discovered new exit (range 4) 945 | -10/Materials | Entered Mines 947 | -10/Mines | Learned location of Zion (-7) 1002 | -10/Mines | Learned location of Storage (-9) 1487 | -10/Mines | Discovered new exit (range 5) 1739 | -10/Mines | Found a damaged Exp. Sensor Array with a note attached 1743 | -10/Mines | Found Prototype Device 1894 | -10/Mines | Learned Materials stockpile data 1936 | -10/Mines | Deemed a non-threat by the Exiles lab entrance 1938 | -10/Mines | Discovered new exit (range 5) 1946 | -10/Mines | Entered Exiles 1977 | -10/Exiles | Discovered new exit (range 15) 2040 | -10/Exiles | Met 8R-AWN 2070 | -10/Exiles | Met EX-HEX 2180 | -10/Exiles | Met EX-DEC 2219 | -10/Exiles | Visited The Gauntlet 2515 | -10/Exiles | Met EX-BIN 2538 | -10/Exiles | Aligned with FarCom system 2539 | -10/Exiles | Given EX-Vault access code 2636 | -10/Exiles | Opened EX-Vault 2678 | -10/Exiles | Warned to stay clear of 0b10 Research branches 2713 | -10/Exiles | Exiles lab attacked by MAIN.C 2751 | -10/Exiles | Found Prototype Storage 2882 | -10/Exiles | Discovered new exit (range 10) 2895 | -10/Exiles | Left Exiles lab with Superbattery 2895 | -10/Exiles | Entered Mines 2895 | -9/Mines | Identified Exp. Sensor Array 2923 | -9/Mines | Discovered new exit (range 15) 2933 | -9/Mines | Met a Derelict bent on vengeance 2950 | -9/Mines | Entered Materials 2950 | -8/Materials | Evolved 4 slots: Propulsion x1, Utility x1, Weapon x2 2951 | -8/Materials | Identified Superbattery 3298 | -8/Materials | Build established: Skirmisher 3531 | -8/Materials | Lost 3 parts (1n1u1w) 3977 | -8/Materials | Build established: Mutant 4522 | -8/Materials | Core integrity fell below 50% 5674 | -8/Materials | Discovered new exit (range 3) 5678 | -8/Materials | Entered Factory 5678 | -7/Factory | Evolved 2 slots: Propulsion x1, Utility x1 5784 | -7/Factory | Identified exit to Garrison 5786 | -7/Factory | Entered Garrison 6022 | -7/Garrison | Triggered checkpoint 6072 | -7/Garrison | Triggered checkpoint 6104 | -7/Garrison | Garrison Relay disabled 6418 | -7/Garrison | Triggered checkpoint 6446 | -7/Garrison | Garrison Relay disabled 6482 | -7/Garrison | Triggered checkpoint 6676 | -7/Garrison | Discovered new exit (range 14) 6795 | -7/Garrison | Garrison Relay disabled 6838 | -7/Garrison | Triggered checkpoint 6976 | -7/Garrison | Discovered new exit (range 12) 7100 | -7/Garrison | Triggered checkpoint 7218 | -7/Garrison | Garrison Relay disabled 7485 | -7/Garrison | Discovered new exit (range 10) 7647 | -7/Garrison | Garrison Relay disabled 7949 | -7/Garrison | Found embedded Infiltrators 8399 | -7/Garrison | Installed Relay Interface Framework 8700 | -7/Garrison | Build established: Bothacker-Mutant 8786 | -7/Garrison | Entered Factory 8786 | -7/Factory | Accompanied by 4 allies 8924 | -7/Factory | Repaired VSS Leg 8979 | -7/Factory | Identified exit to DSF 8983 | -7/Factory | Entered DSF 8983 | -7/DSF | Accompanied by 4 allies 9024 | -7/DSF | Additional patrols routed to DSF 9214 | -7/DSF | Sterilization system engaged 9234 | -7/DSF | Ambient heat levels rising (+10) 9249 | -7/DSF | Ambient heat levels rising (+10) 9264 | -7/DSF | Ambient heat levels rising (+10) 9279 | -7/DSF | Ambient heat levels rising (+10) 9294 | -7/DSF | Ambient heat levels rising (+10) 9309 | -7/DSF | Ambient heat levels rising (+10) 9324 | -7/DSF | Ambient heat levels rising (+10) 9333 | -7/DSF | Discovered new exit (range 14) 9339 | -7/DSF | Ambient heat levels rising (+10) 9346 | -7/DSF | Entered Factory 9346 | -6/Factory | Evolved 2 slots: Propulsion x1, Utility x1 9815 | -6/Factory | Build established: Scavenger-Mutant 9970 | -6/Factory | Discovered new exit (range 6) 10081 | -6/Factory | Entered Lower Caves 10111 | -6/Lower Caves | Attracted the attention of an 0b10 checkpoint 10365 | -6/Lower Caves | Spotted B-75 Beast 10383 | -6/Lower Caves | Build established: Bothacker-Mutant 10497 | -6/Lower Caves | Learned Factory garrison access intel 10549 | -6/Lower Caves | Encountered a Warlord checkpoint 10698 | -6/Lower Caves | Discovered new exit (range 14) 10710 | -6/Lower Caves | Entered another Lower Caves area 10712 | -6/Lower Caves | Spotted B-75 Beast 10745 | -6/Lower Caves | Destroyed B-75 Beast 10762 | -6/Lower Caves | Learned Factory machine intel 10800 | -6/Lower Caves | Discovered new exit (range 11) 10807 | -6/Lower Caves | Learned Factory interactive machine intel 10948 | -6/Lower Caves | Entered Factory 10948 | -5/Factory | Evolved 2 slots: Power x1, Utility x1 10949 | -5/Factory | Loaded intel: 283 machine locations 10950 | -5/Factory | Loaded intel: 54 interactive machine locations 10951 | -5/Factory | Loaded intel: 4 garrison access locations 11064 | -5/Factory | Build established: Mutant 11065 | -5/Factory | Discovered new exit (range 15) 11174 | -5/Factory | Discovered new exit (range 8) 11285 | -5/Factory | Entered Extension 11340 | -5/Extension | Warlord forces began an assault 12013 | -5/Extension | Build established: Scavenger-Mutant 12029 | -5/Extension | Rescued A7 12325 | -5/Extension | Discovered new exit (range 16) 12327 | -5/Extension | Discovered new exit (range 14) 12741 | -5/Extension | Entered Cetus 12741 | -5/Cetus | Accompanied by 10 allies (A7) 12746 | -5/Cetus | Acquired a Cetus Manufacturing Module code from A7 12761 | -5/Cetus | Spotted Cetus Guard 12763 | -5/Cetus | Spotted Cetus Guard 12765 | -5/Cetus | Spotted Cetus Guard 12766 | -5/Cetus | Allies destroyed Cetus Guard 12767 | -5/Cetus | Spotted Cetus Guard 12779 | -5/Cetus | Allies destroyed Cetus Guard 12783 | -5/Cetus | Allies destroyed Cetus Guard 12790 | -5/Cetus | Destroyed Cetus Guard 12854 | -5/Cetus | Cetus Manufacturing Module disabled 12894 | -5/Cetus | Failed to start Cetus Manufacturing Module 13048 | -5/Cetus | Discovered new exit (range 15) 13071 | -5/Cetus | Spotted Cetus Guard 13072 | -5/Cetus | Spotted Cetus Guard 13104 | -5/Cetus | Entered Archives 13104 | -5/Archives | Accompanied by 1 ally (A7) 13241 | -5/Archives | Unable to access archive contents 13243 | -5/Archives | Discovered new exit (range 16) 13267 | -5/Archives | Unable to access archive contents 13279 | -5/Archives | Discovered new exit (range 14) 13297 | -5/Archives | Discovered new exit (range 15) 13336 | -5/Archives | Unable to access archive contents 13559 | -5/Archives | Entered Hub_04(d) 13720 | -5/Hub_04(d) | Identified exit to Garrison 13725 | -5/Hub_04(d) | Entered Garrison 14110 | -5/Garrison | Garrison Relay disabled 14322 | -5/Garrison | Spotted B-75 Beast 14365 | -5/Garrison | Crushed by falling debris 14365 | -5/Garrison | System corruption reached 10% 14396 | -5/Garrison | Lost 4 parts (1p2u1w) 14538 | -5/Garrison | Lost 4 parts (1p1n1u1w) 14616 | -5/Garrison | Triggered checkpoint 14616 | -5/Garrison | Triggered checkpoint 14825 | -5/Garrison | Destroyed B-75 Beast 14973 | -5/Garrison | Build established: Scavenger-Skirmisher 14982 | -5/Garrison | Discovered new exit (range 10) 15124 | -5/Garrison | Lost 3 parts (1u2w) 15256 | -5/Garrison | Triggered checkpoint 15258 | -5/Garrison | Garrison Relay disabled 15354 | -5/Garrison | Triggered checkpoint 15441 | -5/Garrison | Triggered checkpoint 15476 | -5/Garrison | System corruption reached 30% 15531 | -5/Garrison | Lost 14 parts (3p3n6u2w) 15548 | -5/Garrison | Triggered checkpoint 15658 | -5/Garrison | Discovered new exit (range 13) 15674 | -5/Garrison | Expanded RIF knowledge: Robot Detection 15720 | -5/Garrison | Triggered checkpoint 15745 | -5/Garrison | Build established: Scavenger-Mutant 15764 | -5/Garrison | Garrison Relay disabled 15842 | -5/Garrison | Entered Factory 15842 | -4/Factory | Evolved 2 slots: Utility x2 16575 | -4/Factory | Repaired Hvy. Mass Driver 16747 | -4/Factory | Lost 5 parts (3n2w) 17441 | -4/Factory | System corruption reached 10% 17848 | -4/Factory | Identified exit to Garrison 17858 | -4/Factory | Entered Garrison 17870 | -4/Garrison | Triggered checkpoint 18042 | -4/Garrison | Expanded RIF knowledge: Autooverride 18083 | -4/Garrison | Garrison Relay disabled 18218 | -4/Garrison | Lost 7 parts (4n1u2w) 18219 | -4/Garrison | Destroyed 10 combat bots 18676 | -4/Garrison | Triggered checkpoint 18776 | -4/Garrison | Discovered new exit (range 11) 18842 | -4/Garrison | Build established: Bothacker-Mutant 19382 | -4/Garrison | Triggered checkpoint 19438 | -4/Garrison | Garrison Relay disabled 19588 | -4/Garrison | Triggered checkpoint 19805 | -4/Garrison | Discovered new exit (range 8) 19915 | -4/Garrison | Build established: Scavenger-Gunner 20001 | -4/Garrison | Garrison Relay disabled 20209 | -4/Garrison | Crushed by falling debris 20240 | -4/Garrison | Lost 5 parts (3n2u) 20276 | -4/Garrison | Entered Factory 20320 | -4/Factory | Found Unknown Device 20506 | -4/Factory | Build established: Bothacker-Mutant 21179 | -4/Factory | Build established: Bothacker-Gunner 21310 | -4/Factory | First assault squad dispatched 21463 | -4/Factory | Identified Quantum Capacitor 21487 | -4/Factory | Core integrity fell below 50% 21535 | -4/Factory | Core integrity fell below 20% 21572 | -4/Factory | Destroyed by G-67 Veteran with Field Laser Last Messages --------------- 21522_ Enforcer 7a destroyed. 21522_ Acquired Nuclear Pulse Array. 21523_ Acquired 64 matter. 21525_ Flexi-carbon Leg destroyed. 21532_ V30NT: D6G>parse_system Reading system data... 21535_ Jacked G-67 Veteran... 21537_ Critical hit (Burn: +37). 21543_ Adv. Datajack destroyed. 21546_ Critical hit (Burn: +50). 21550_ System corrupted: Matter fused (-7). 21556_ Acquired Imp. Treads. 21561_ Imp. Light Armor Plating destroyed. 21563_ Critical hit (Burn: +37). 21567_ Imp. Light Armor Plating destroyed. [Achievement: 20k Club] [Achievement: Achiever] Map ----- +----------------------------------------------------+ | ????????????????????????????? | | ????????????????????????????? | | ????????????????????????????? | | ????????????????????????????? | | ????????????????????????????? | | ????????????????????????????? | | ????????????????????????????? | | ??????????????????????? ????? | | ????????????????????## "???? | | ???????????????????#"# "???? | | ??????????????????? ????? | | ?????????????????? ?????? | | ?????????????????? ??????? | | ????????????????? ???????? | | ?????????????????% ????????? | | ???????????????? "#?????????? | | ?????????????### "##????????? | | ????????????## ##???????? | | ????##########"%% %"#???????? | | ????# ! [ !%% "% #????????? | | ????# ##### % #????????? | | ????# #??## #????????? | | ??### #???#######????????? | | ########!#??????????????????? | | # !!%[# #??????????????????? | | # !@%=;*#??????????????????? | | # [%[%# #??????????????????? | | # *!*i%# #??????????????????? | | #%*=*g!+%#??????????????????? | | #=% g*!!##??????????????????? | | ####*####???????????????????? | | ???#!##?????????????????????? | | ???#=##?###########?????????? | | ???#%#??# """ #?????????? | | ???#%#??# "Y" #?????????? | | ####+#### #?????????? | | # # #???#?????? | | # """ # !! #???# ????? | | # """ # ! #??##+##### | | # """ # #??# | | # # #??# | | # """ #+##+######### | | # """ # # | | # """ # # | | # + ""# ! | | # """ # ""# | | # """ # T"# | | # """ # """ ""# | | # # """ ""#####+## | | # """ # ! """ | +----------------------------------------------------+ Best States ------------- Heat Dissipation 67 Energy Generation 41 Energy Capacity 575 Matter Stores 422 Matter Capacity 450 Sight Range 16 Terrain Scan Density 10 Armor Coverage 450 Melee Speed Boost 20 Evasion (%) 55 Targeting Accuracy 8 Melee Accuracy 6 Target Analysis 6 Recoil Reduction 5 Relay Coupler Types 4 Relay Coupler Value 91 Authchip Count 2 Item Schematics ----------------- Railgun | -5/Extension | Hacked Robot Schematics ------------------ None Fabricated ------------ Nothing Alien Tech Used ----------------- None Achievements -------------- 20k Club Achiever Assimilation Complete Error 47 Hehehe Prolific Hacker Respectable Loadout Z1$+NX3F=JRE3_ZNQR Challenges ------------ None Game ------ Seed GlidesysCombatClaymores Manual? 0 Play Time 04:42:57 Cumulative 52.6 hours Start 2023.03.12 @ 21:23:21 End 2023.03.17 @ 07:56:49 Sessions 11 Manual Loads 0 Difficulty Rogue Special Mode None Game No. 32 Rogue 32 Adventurer 0 Explorer 0 Win Type - Total 0 Types 0/0/0/0/0/0/0/0/0 Lore% 28 Gallery% 34 Achievement% 27 Wizard Run 0 Options --------- ASCII 0 Keyboard 0 Movement Numpad Keybinds 0 Fullscreen 1 Font 24/Terminus Map View 76x50 Tactical HUD 1 Map Filters NONE Filters NONE Steam 1 RUN: 9fda8311-f7e7-49c3-9362-bb7f6f8519f9